Cogmind - Beta 15 @@@ ROGUE MODE // 2025.09.24 @ 00:15:18 Player: kiul Result: Destroyed by D-53 Grenadier with Mini Grenade Launcher Performance ------------- Evolutions (0) 0 Regions Visited (2) 400 Robots Destroyed (4) 20 Value Destroyed (146) 146 Prototype IDs (0) 0 Alien Tech Used (0) 0 Bonus (0) 0 TOTAL SCORE: 566 Bonus ------- None Cogmind --------- Core Integrity 0/250 Matter 199/300 Energy 60/250 System Corruption 0% Temperature Cool (0) Movement Walking (120) Location -10/Mines Parts ------- > --- POWER (1) -------- Ion Engine > --- PROPULSION (2) --- Aluminum Leg Aluminum Leg > --- UTILITY (2) ------ Small Storage Unit > --- WEAPON (2) ------- (None) > --- INVENTORY (8) ---- Ion Engine Small Laser Assault Rifle Peak State ------------ > --- POWER ------------ Ion Engine > --- PROPULSION ------- Aluminum Leg Aluminum Leg > --- UTILITY ---------- Small Storage Unit > --- WEAPON ----------- Small Laser Light Assault Rifle > --- INVENTORY -------- (None) [Rating: 6] Favorites ----------- Power Ion Engine Engine Ion Engine Propulsion Aluminum Leg Leg Aluminum Leg Utility Small Storage Unit Storage Small Storage Unit Weapon Light Assault Rifle Energy Gun Small Laser Ballistic Gun Light Assault Rifle Launcher Grenade Launcher Build | -11 -10 -10 ------- Run | Yrd Mat Min Slots Evolved . | . . . Power . | . . . Propulsion . | . . . Utility . | . . . Weapon . | . . . Parts Attached 10 | 6 1 3 Power 2 | 1 . 1 Engine 2 | 1 . 1 Core . | . . . Reactor . | . . . Propulsion 4 | 2 . 2 Treads . | . . . Leg 4 | 2 . 2 Wheel . | . . . Hover . | . . . Flight . | . . . Utility 1 | 1 . . Device . | . . . Storage 1 | 1 . . Processor . | . . . Hackware . | . . . Protection . | . . . Artifact . | . . . Weapon 3 | 2 1 . Energy Gun 1 | 1 . . Energy Cannon . | . . . Ballistic Gun 1 | 1 . . Ballistic Cannon . | . . . Launcher 1 | . 1 . Special Weapon . | . . . Impact Weapon . | . . . Slashing Weapon . | . . . Piercing Weapon . | . . . Special Melee Weapon . | . . . Unidentified Prototypes . | . . . Parts Lost 5 | . . 5 Power 1 | . . 1 Propulsion 2 | . . 2 Utility . | . . . Weapon 2 | . . 2 Highest Loss Streak 5 | . . 5 To Critical Strikes . | . . . Average Backups 3 | 2 2 5 Power 1 | . 1 1 Propulsion . | . . 2 Utility . | . . . Weapon 1 | . 1 2 Tool/Special . | . . . Unused Backups 3 | . . 3 Power 1 | . . 1 Propulsion . | . . . Utility . | . . . Weapon 2 | . . 2 Tool/Special . | . . . Average Slot Usage (%) 81 | . 85 73 Engine 13 | . 14 11 Leg 26 | . 28 23 Storage 14 | . 14 14 Energy Gun 2 | . 4 . Ballistic Gun 13 | . 14 11 Launcher 10 | . 10 11 Peak Build Rating 6 | 6 6 6 Average Rating 5 | 3 6 5 On Entrance 4 | . 6 6 Naked Turns . | . . . Heaviest Build 14 | 12 14 14 Greatest Support 20 | 20 20 20 Greatest Overweight (x) 3 | 1 . 3 Average Overweight (x) . | . . . Largest Inventory Capacity 8 | 8 8 8 Average Capacity 7 | 7 8 8 Most Carried 6 | 5 6 6 Average Carried 3 | 2 3 5 Final Capacity 8 | 8 8 8 Final Carried 6 | 2 6 3 Class Distribution -------------------- 100% | Mutant Dominant Class ---------------- Mutant | -10/Materials Mutant | -10/Mines Resources | -11 -10 -10 ----------- Run | Yrd Mat Min Matter Collected 275 | 210 65 . Remotely . | . . . Salvage Created 146 | . 132 14 Parts 8 | . 8 . Haulers Intercepted . | . . . Recyclers Shooed . | . . . Parts Field Recycled . | . . . Retrieved Matter . | . . . Parts Self-Destructed . | . . . Prevented . | . . . Kills | -11 -10 -10 ------- Run | Yrd Mat Min Combat Hostiles Destroyed 6 | . 4 2 Guns 2 | . 2 . AOE 4 | . 2 2 Classes Destroyed 2 | . 1 1 Grunt 4 | . 4 . Assembled 2 | . . 2 Best Kill Streak 4 | . 4 2 Combat Bots Only 4 | . 4 2 Max Kills in Single Turn 2 | . 1 2 Gunslinging . | . . . Exploded 2 | . 1 2 Melee . | . . . Uniques/NPCs Destroyed . | . . . Combat | -11 -10 -10 -------- Run | Yrd Mat Min Hostile Shots Fired 31 | . 13 18 Missed 8 | . 8 . Hits 23 | . 5 18 Projectile 23 | . 5 18 AOE 14 | . . 14 Damage Taken 807 | . 103 704 Core 269 | . 25 244 Absorbed by Shields . | . . . Core Remaining (%) 100 | 100 . . Volleys Fired 21 | . 17 4 Largest 2 | . 2 2 Hottest 60 | . 60 50 Shots Fired 32 | . 25 7 Gun 24 | . 20 4 Cannon . | . . . Launcher 8 | . 5 3 Special . | . . . Kinetic 21 | . 17 4 Thermal 3 | . 3 . Explosive 8 | . 5 3 Electromagnetic . | . . . Robot Hit Streak 5 | . 5 4 Robot Miss Streak 3 | . 3 3 Penetration Max . | . . . Secondary Targets . | . . . Shots Hit Robots 20 | . 16 4 Core Hits 14 | . 7 7 Critical Kills 1 | . 1 . Critical Parts Destroyed . | . . . Critical Strikes 1 | . 1 . Destroy 1 | . 1 . Melee Attacks . | . . . Impact . | . . . Slashing . | . . . Piercing . | . . . Sneak Attacks . | . . . Combat Hostiles . | . . . Follow-up Attacks . | . . . Damage Inflicted 484 | . 255 229 Guns 119 | . 100 19 Cannons . | . . . Explosions 365 | . 155 210 Melee . | . . . Ramming . | . . . Kinetic 109 | . 90 19 Thermal 10 | . 10 . Explosive 365 | . 155 210 Electromagnetic . | . . . Impact . | . . . Slashing . | . . . Piercing . | . . . Highest Corruption . | . . . Average Corruption . | . . . Corruption Purged . | . . . Corruption Blocked . | . . . Overload Shots . | . . . Overflow Damage 16 | . 16 . Projectiles . | . . . Explosions 16 | . 16 . Melee . | . . . Knockbacks . | . . . Impact . | . . . Kinetic . | . . . Secondary . | . . . Self-Inflicted Damage 71 | . 49 22 Shots 3 | . 2 1 Rammed . | . . . Targets Rammed . | . . . Kicked . | . . . Crushed . | . . . Highest Temperature 20 | . 20 20 Average Temperature 10 | . 10 10 Received Heat Transfer 50 | . 30 20 Siege Activations . | . . . Martial Activations . | . . . Shielding Activations . | . . . Robots Disrupted . | . . . Combat Hostiles . | . . . Robots Corrupted . | . . . Combat Hostiles . | . . . Parts Fried . | . . . Impact Corruptions . | . . . Robots Melted . | . . . Combat Hostiles . | . . . Parts Melted . | . . . Heat Transferred 25 | . 25 . Parts Sabotaged . | . . . Parts Stolen . | . . . Parts Stripped . | . . . Power Chain Reactions . | . . . Alert | -11 -10 -10 ------- Run | Yrd Mat Min Maximum Alert Level . | . . . Low Security (%) 100 | 100 100 100 Level 1 . | . . . Level 2 . | . . . Level 3 . | . . . Level 4 . | . . . Level 5 . | . . . High Security . | . . . Max Security . | . . . Peak Influence 134 | . 134 41 Initial 40 | . . 40 Average 42 | . 70 29 Influence Increases 159 | . 144 15 Destroy 0b10 Robot/C 80 | . 80 . Destroy Leader 20 | . 20 . Disable Machine 15 | . 15 . Destroy Structure 44 | . 29 15 Influence Decreases 159 | . 40 119 Entered New Map 64 | . . 64 Time Decay 60 | . 40 20 Lost Part 35 | . . 35 Squads Dispatched 2 | . 2 . Investigation 1 | . 1 . Extermination . | . . . Reinforcement 1 | . 1 . Assault . | . . . Garrison . | . . . Intercept . | . . . Searches Triggered . | . . . Construction Impeded . | . . . Haulers Reinforced . | . . . Active Scanning Responses . | . . . Cargo Convoy Interrupts . | . . . Stealth | -11 -10 -10 --------- Run | Yrd Mat Min Distress Signals . | . . . Communications Jammed . | . . . Distress Signals . | . . . Times Spotted 16 | . 8 8 Peak Tracking Total 19 | . 4 19 Tactical Retreats . | . . . Traps | -11 -10 -10 ------- Run | Yrd Mat Min Traps Triggered 1 | . 1 . Indirectly . | . . . Trap Hack Attempts . | . . . Triggered . | . . . Disarmed . | . . . Reprogrammed . | . . . Reused . | . . . Traps Extracted . | . . . Installed . | . . . Triggered . | . . . Machines | -11 -10 -10 ---------- Run | Yrd Mat Min Machines Disabled 1 | . 1 . Max in Single Turn 1 | . 1 . Machines Repaired . | . . . Machines Dismantled . | . . . Machines Sabotaged . | . . . Overloaded Fab Kills . | . . . Hacking | -11 -10 -10 --------- Run | Yrd Mat Min Machines Accessed . | . . . Terminals . | . . . Fabricators . | . . . Repair Stations . | . . . Recycling Units . | . . . Scanalyzers . | . . . Garrison Access . | . . . Total Hacks . | . . . Successful . | . . . Failed . | . . . Catastrophic . | . . . Database Lockouts . | . . . Manual . | . . . Terminals . | . . . Fabricators . | . . . Repair Stations . | . . . Recycling Units . | . . . Scanalyzers . | . . . Garrison Access . | . . . Terminal Hacks . | . . . Fabricator Hacks . | . . . Repair Station Hacks . | . . . Recycling Unit Hacks . | . . . Scanalyzer . | . . . Garrison Access Hacks . | . . . Unauthorized Hacks . | . . . Terminals . | . . . Fabricators . | . . . Repair Stations . | . . . Recycling Units . | . . . Scanalyzers . | . . . Garrison Access . | . . . Data Cores Recovered . | . . . Used . | . . . Hacking Detections . | . . . Full Trace Events . | . . . Feedback Events . | . . . Feedback Blocked . | . . . Robot Schematics Acquired . | . . . Robots Built . | . . . Authchips . | . . . Time . | . . . Total Robot Build Rating . | . . . Part Schematics Acquired . | . . . Parts Built . | . . . Authchips . | . . . Time . | . . . Total Part Build Rating . | . . . Parts Repaired . | . . . Time . | . . . Parts Recycled . | . . . Recycled Matter . | . . . Retrieved Matter . | . . . Retrieved Components . | . . . Parts Scanalyzed . | . . . Part Schematics Acquired . | . . . Parts Damaged . | . . . Bothacking | -11 -10 -10 ------------ Run | Yrd Mat Min Used RIF Installer . | . . . Robots Hacked . | . . . Non-combat . | . . . Combat . | . . . Robot Hacks Applied . | . . . Relay Couplers Released . | . . . Fabnet Peak Effective % . | . . . Robots Rewired . | . . . Allies Hacked . | . . . Hacks Repelled . | . . . Allies | -11 -10 -10 -------- Run | Yrd Mat Min Total Allies . | . . . Largest Group . | . . . Highest-Rated Group . | . . . Highest-Rated Ally . | . . . Total Orders . | . . . Ally Attacks . | . . . Total Damage . | . . . Kills . | . . . Allies Corrupted . | . . . Allies Melted . | . . . Intel | -11 -10 -10 ------- Run | Yrd Mat Min Active Infowar (turns) . | . . . Robot Analysis Total . | . . . Derelict Logs Recovered . | . . . Drone Launches . | . . . Drone Recoveries . | . . . Exploration | -11 -10 -10 ------------- Run | Yrd Mat Min Turns Passed 242 | 65 127 50 Spaces Moved 159 | 59 70 30 Core 29 | 27 . 2 Treads . | . . . Legs 130 | 32 70 28 Wheels . | . . . Hover . | . . . Flight . | . . . Fastest Speed 50 | 50 120 100 Average Speed 109 | 88 120 124 Slowest Speed 200 | 120 120 200 Overloaded Moves . | . . . Propulsion Burnouts . | . . . Robots Hopped . | . . . Potential Cave-ins . | . . . Cave-ins Triggered 1 | . . 1 Exploration Rate (%) 11 | 4 16 14 Regions Visited 2 Branch Regions 1 Pre-discovered Areas . | . . . Known Exits Taken . | . . . Unknown Exits Taken 2 | 1 1 . Scrap Searched . | . . . Spaces Dug . | . . . Terrain Destroyed 53 | . 37 16 Melee . | . . . Projectile . | . . . AOE 53 | . 37 16 Terrain Rammed . | . . . Walls Destroyed . | . . . Machines Disabled . | . . . Actions | -11 -10 -10 --------- Run | Yrd Mat Min Total 199 | 71 91 37 Wait . | . . . Move 157 | 58 69 30 Hop . | . . . Pick Up 11 | 7 4 . Fast Attach 1 | 1 . . Attach 8 | 5 . 3 Detach . | . . . Swap 1 | . 1 . Drop . | . . . Fire 21 | . 17 4 Melee . | . . . Ram . | . . . Kick . | . . . Crush . | . . . Escape Stasis . | . . . Rewire . | . . . Trap . | . . . Miscellaneous . | . . . Route ------- -11/Scrapyard -10/Materials -10/Mines History --------- Turn | Location | Event 14 | -11/Scrapyard | Discovered new exit (range 15) 66 | -11/Scrapyard | Entered Materials 183 | -10/Materials | Discovered new exit (range 6) 193 | -10/Materials | Entered Mines 212 | -10/Mines | Assembled infested the area 241 | -10/Mines | Crushed by falling debris 241 | -10/Mines | Core integrity fell below 50% 242 | -10/Mines | Core integrity fell below 20% 243 | -10/Mines | Destroyed by D-53 Grenadier with Mini Grenade Launcher Last Messages --------------- 00229_ as-42076 destroyed. 00229_ as-02294 destroyed. 00229_ as-43387 destroyed. 00230_ C-30 ARC bursts open, deploying its payload. 00230_ D-53 Grenadier unfolds itself. 00230_ Aluminum Leg destroyed. 00232_ Grenade Launcher destroyed. 00234_ U-05 Engineer lays Concrete. 00234_ Aluminum Leg destroyed. 00236_ U-05 Engineer lays Concrete. 00237_ Ion Engine destroyed. 00238_ U-05 Engineer lays Concrete. 00238_ Lgt. Assault Rifle destroyed. 00239_ U-05 Engineer lays Concrete. 00240_ The unstable cave ceiling collapses. 00240_ U-05 Engineer lays Concrete. 00241_ The unstable cave ceiling collapses. 00241_ Crushed by falling debris. [Achievement: Unlikely Earthworm] 00241_ U-05 Engineer lays Concrete. Map ----- +----------------------------------------------------+ | ???????????????????# #### ##???? | | ???????????????????# #???? | | ???????????????????# #???? | | ????????????????????# #???? | | ?????????????????????# #???? | | ??????????????????????# #???? | | ??????????????????????# #???? | | ?????????????????????## #???? | | ????????????????????## ## #???? | | ????????????????????# ##???#???? | | ????????????????????# #????????? | | ???????????????????## #????????? | | ??????????????????## ##????????? | | ??????????????????# ##?????????? | | ??????????????????# #??????????? | | ??????????????????## #??????????? | | ???????????????????### ##??????????? | | ????????????????????## #???????????? | | ?????????????????#### ####???????? | | ???????? ###### t ##??????? | | ??????? u d #??????? | | ??????? d ##?????? | | ??????? #### ##????? | | ???????????????## #????? | | ????????????????## # #????? | | ?????????????????#### @ #????? | | ????????????????????# #????? | | ????????????????????# #????? | | ????????????????????## #????? | | ?????????????????????### ##????? | | ??????????????????????? a #?????? | | ?????????????????????? a #?????? | | ????????????????????? # ###?????? | | ???????????????????? ######???????? | | ???????????????????# #?????????????? | | ???????????????????# ??????????????? | | ???????????????????# ??????????????? | | ??????????????????? ???????????????? | | ?????????????????? % ???????????????? | | ?????????????????? ????????????????? | | ????????????????????????????????????? | | ????????????????????????????????????? | | ????????????????????????????????????? | | ????????????????????????????????????? | | ????????????????????????????????????? | | ????????????????????????????????????? | | ????????????????????????????????????? | | ????????????????????????????????????? | | ????????????????????????????????????? | | ????????????????????????????????????? | +----------------------------------------------------+ Best States ------------- Heat Dissipation 25 Energy Generation 10 Energy Capacity 250 Matter Stores 249 Matter Capacity 300 Sight Range 16 Terrain Scan Density 10 Evasion (%) 55 Item Schematics ----------------- None Robot Schematics ------------------ None Fabricated ------------ Nothing Repaired ---------- Nothing Alien Tech Used ----------------- None Achievements -------------- Unlikely Earthworm Challenges ------------ None Game ------ Seed AlloyModifiedFalx Manual? 0 Play Time 00:04:23 Cumulative 4.9 hours Start 2025.09.24 @ 00:12:10 End 2025.09.24 @ 00:15:18 Sessions 1 Manual Loads 0 Difficulty Rogue Special Mode None Game No. 10 Rogue 10 Adventurer 0 Explorer 0 Win Type - Total 0 Types 0/0/0/0/0/0/0/0/0/0 Lore% 0 Gallery% 9 Achievement% 9 Wizard Run 0 Options --------- Layout 0 ASCII 0 Keyboard 1 Movement Arrows Keybinds 0 Fullscreen 1 Font 24/Smallcaps Map View 76x50 Zoom Use 0% Tactical HUD 1 Map Filters NONE Filters NONE Steam 1 RUN: fbcc675f-174e-4af7-acb4-ea3c3accb0e8